[Event "Titled Tuesday Blitz May 2 Late 2023"]
[White "Bruedigam, Martin"]
[Black "Kula, Robert"]
[WhiteFideId "24608033"]
[BlackFideId "1101218"]
[WhiteElo "2331"]
[BlackElo "2180"]
[Result "1-0"]
[Round "11"]
[TimeControl "180+2"]
[Date "2023.05.02"]
[WhiteClock "0:00:42"]
[BlackClock "0:00:25"]

1. d4 {[%clk 0:03:00]}  g6 {[%clk 0:02:59]} 2. e4 {[%clk 0:03:00]}  Bg7 {[%clk 0:02:59]} 3. Nf3 {[%clk 0:02:59]}  e6 {[%clk 0:02:55]} 4. c3 {[%clk 0:02:57]}  Ne7 {[%clk 0:02:55]} 5. Nbd2 {[%clk 0:02:57]}  O-O {[%clk 0:02:56]} 6. Bc4 {[%clk 0:02:57]}  d5 {[%clk 0:02:55]} 7. Bb3 {[%clk 0:02:58]}  b6 {[%clk 0:02:52]} 8. O-O {[%clk 0:02:57]}  Bb7 {[%clk 0:02:52]} 9. e5 {[%clk 0:02:57]}  c5 {[%clk 0:02:51]} 10. a3 {[%clk 0:02:53]}  Nbc6 {[%clk 0:02:50]} 11. h4 {[%clk 0:02:53]}  h6 {[%clk 0:02:50]} 12. Re1 {[%clk 0:02:52]}  Nf5 {[%clk 0:02:46]} 13. Nf1 {[%clk 0:02:52]}  Nxh4 {[%clk 0:02:42]} 14. Nxh4 {[%clk 0:02:52]}  Qxh4 {[%clk 0:02:42]} 15. g3 {[%clk 0:02:52]}  Qe7 {[%clk 0:02:35]} 16. Ne3 {[%clk 0:02:48]}  Rac8 {[%clk 0:02:32]} 17. Bc2 {[%clk 0:02:46]}  cxd4 {[%clk 0:02:27]} 18. cxd4 {[%clk 0:02:47]}  Ba6 {[%clk 0:02:26]} 19. Kg2 {[%clk 0:02:39]}  h5 {[%clk 0:02:21]} 20. Rh1 {[%clk 0:02:39]}  Rc7 {[%clk 0:02:20]} 21. b4 {[%clk 0:02:25]}  Rfc8 {[%clk 0:02:18]} 22. Bb2 {[%clk 0:02:26]}  Nxd4 {[%clk 0:02:07]} 23. Bxd4 {[%clk 0:02:24]}  Bh6 {[%clk 0:02:03]} 24. Bd3 {[%clk 0:02:23]}  Bb7 {[%clk 0:01:59]} 25. Kh2 {[%clk 0:02:14]}  h4 {[%clk 0:01:51]} 26. Qg4 {[%clk 0:02:06]}  hxg3+ {[%clk 0:01:46]} 27. Kxg3 {[%clk 0:02:06]}  Bg7 {[%clk 0:01:38]} 28. Rh3 {[%clk 0:01:50]}  Rc3 {[%clk 0:01:37]} 29. Rd1 {[%clk 0:01:41]}  Rxa3 {[%clk 0:01:35]} 30. Qh4 {[%clk 0:01:25]}  Qxb4 {[%clk 0:01:32]} 31. Kh2 {[%clk 0:01:08]}  Ra4 {[%clk 0:01:31]} 32. Nc2 {[%clk 0:00:58]}  Bxe5+ {[%clk 0:01:23]} 33. Kg1 {[%clk 0:00:41]}  Qb3 {[%clk 0:00:37]} 34. Qh8+ {[%clk 0:00:41]}  Bxh8 {[%clk 0:00:25]} 35. Rxh8# {[%clk 0:00:42]} 1-0


[Site "https://www.chess.com"]

[Event "Titled Tuesday Blitz May 2 Late 2023"]
[White "Stork, Oliver"]
[Black "Elissalt Cardenas, Hector"]
[WhiteFideId "12955728"]
[BlackFideId "3500632"]
[WhiteElo "2239"]
[BlackElo "2202"]
[Result "1/2-1/2"]
[Round "11"]
[TimeControl "180+2"]
[Date "2023.05.02"]
[WhiteClock "0:00:20"]
[BlackClock "0:00:04"]

1. b3 {[%clk 0:03:00]}  e5 {[%clk 0:02:17]} 2. Bb2 {[%clk 0:02:55]}  Nc6 {[%clk 0:02:16]} 3. c4 {[%clk 0:02:56]}  Nge7 {[%clk 0:02:14]} 4. e3 {[%clk 0:02:56]}  Ng6 {[%clk 0:02:10]} 5. d4 {[%clk 0:02:50]}  Bb4+ {[%clk 0:02:08]} 6. Bc3 {[%clk 0:02:47]}  Bxc3+ {[%clk 0:02:01]} 7. Nxc3 {[%clk 0:02:48]}  exd4 {[%clk 0:02:01]} 8. exd4 {[%clk 0:02:49]}  O-O {[%clk 0:02:01]} 9. Be2 {[%clk 0:02:49]}  Nf4 {[%clk 0:01:55]} 10. g3 {[%clk 0:02:40]}  Nxe2 {[%clk 0:01:48]} 11. Ngxe2 {[%clk 0:02:41]}  d6 {[%clk 0:01:47]} 12. O-O {[%clk 0:02:39]}  Bh3 {[%clk 0:01:45]} 13. Re1 {[%clk 0:02:39]}  Bg4 {[%clk 0:01:33]} 14. Qd2 {[%clk 0:02:36]}  Qf6 {[%clk 0:01:32]} 15. Nd5 {[%clk 0:02:31]}  Qf3 {[%clk 0:01:21]} 16. Nef4 {[%clk 0:02:22]}  Bf5 {[%clk 0:00:30]} 17. Nxc7 {[%clk 0:01:52]}  Rac8 {[%clk 0:00:26]} 18. Ncd5 {[%clk 0:01:52]}  Be4 {[%clk 0:00:25]} 19. Rxe4 {[%clk 0:01:29]}  Qxe4 {[%clk 0:00:25]} 20. Rd1 {[%clk 0:01:22]}  Rfe8 {[%clk 0:00:25]} 21. Nh5 {[%clk 0:01:22]}  Qg6 {[%clk 0:00:16]} 22. Nhf4 {[%clk 0:01:22]}  Qe4 {[%clk 0:00:15]} 23. Nh5 {[%clk 0:00:58]}  Qf3 {[%clk 0:00:11]} 24. Nhf4 {[%clk 0:00:43]}  Re4 {[%clk 0:00:11]} 25. Re1 {[%clk 0:00:26]}  Rce8 {[%clk 0:00:08]} 26. Rxe4 {[%clk 0:00:23]}  Rxe4 {[%clk 0:00:07]} 27. Ne3 {[%clk 0:00:23]}  Nxd4 {[%clk 0:00:06]} 28. Nfd5 {[%clk 0:00:20]}  Ne2+ {[%clk 0:00:04]} 29. Kf1 {[%clk 0:00:20]}  Nd4 {[%clk 0:00:04]} 30. Kg1 {[%clk 0:00:19]}  Ne2+ {[%clk 0:00:04]} 31. Kf1 {[%clk 0:00:19]}  Nd4 {[%clk 0:00:04]} 32. Kg1 {[%clk 0:00:20]} 1/2-1/2


[Site "https://www.chess.com"]

[Event "Titled Tuesday Blitz May 2 Late 2023"]
[White "Ferriz Barrios, Andres"]
[Black "Urbina Perez, Juan Antonio"]
[WhiteFideId "5104467"]
[BlackFideId "2217368"]
[WhiteElo "2102"]
[BlackElo "2197"]
[Result "1-0"]
[Round "11"]
[TimeControl "180+2"]
[Date "2023.05.02"]
[WhiteClock "0:00:48"]
[BlackClock "0:00:31"]

1. d4 {[%clk 0:02:55]}  Nf6 {[%clk 0:02:58]} 2. Nf3 {[%clk 0:02:56]}  e6 {[%clk 0:02:59]} 3. Nbd2 {[%clk 0:02:56]}  d5 {[%clk 0:02:56]} 4. e3 {[%clk 0:02:34]}  c5 {[%clk 0:02:54]} 5. c3 {[%clk 0:02:31]}  Nc6 {[%clk 0:02:54]} 6. Bd3 {[%clk 0:02:29]}  Bd6 {[%clk 0:02:54]} 7. O-O {[%clk 0:02:30]}  e5 {[%clk 0:02:53]} 8. dxc5 {[%clk 0:02:30]}  Bxc5 {[%clk 0:02:51]} 9. e4 {[%clk 0:02:31]}  O-O {[%clk 0:02:43]} 10. Qe2 {[%clk 0:02:30]}  d4 {[%clk 0:02:39]} 11. Nb3 {[%clk 0:02:30]}  Bb6 {[%clk 0:02:38]} 12. Rd1 {[%clk 0:02:31]}  dxc3 {[%clk 0:02:36]} 13. bxc3 {[%clk 0:02:29]}  Qe7 {[%clk 0:02:35]} 14. a4 {[%clk 0:02:29]}  Na5 {[%clk 0:02:31]} 15. Ba3 {[%clk 0:02:27]}  Qe6 {[%clk 0:02:25]} 16. Nxa5 {[%clk 0:02:26]}  Bxa5 {[%clk 0:02:26]} 17. Bxf8 {[%clk 0:02:25]}  Kxf8 {[%clk 0:02:26]} 18. Bc4 {[%clk 0:02:25]}  Qe7 {[%clk 0:02:25]} 19. Qd3 {[%clk 0:02:18]}  Bg4 {[%clk 0:02:20]} 20. h3 {[%clk 0:02:18]}  Bh5 {[%clk 0:02:18]} 21. Bd5 {[%clk 0:02:15]}  Rd8 {[%clk 0:02:16]} 22. c4 {[%clk 0:02:16]}  Bg6 {[%clk 0:02:12]} 23. Qe2 {[%clk 0:02:11]}  Nh5 {[%clk 0:01:56]} 24. Rab1 {[%clk 0:02:05]}  b6 {[%clk 0:01:53]} 25. g3 {[%clk 0:01:57]}  Nf6 {[%clk 0:01:46]} 26. Qb2 {[%clk 0:01:48]}  Bh5 {[%clk 0:01:41]} 27. g4 {[%clk 0:01:47]}  Nxg4 {[%clk 0:01:38]} 28. hxg4 {[%clk 0:01:48]}  Bxg4 {[%clk 0:01:39]} 29. Qe2 {[%clk 0:01:41]}  Qf6 {[%clk 0:01:35]} 30. Kg2 {[%clk 0:01:26]}  Rd6 {[%clk 0:01:26]} 31. Qe3 {[%clk 0:01:23]}  h6 {[%clk 0:01:07]} 32. Rh1 {[%clk 0:01:16]}  Qe7 {[%clk 0:01:03]} 33. Kg3 {[%clk 0:01:08]}  h5 {[%clk 0:00:49]} 34. Qg5 {[%clk 0:00:58]}  Rf6 {[%clk 0:00:47]} 35. Nxe5 {[%clk 0:00:53]}  Bc3 {[%clk 0:00:36]} 36. Nxg4 {[%clk 0:00:53]}  hxg4 {[%clk 0:00:31]} 37. Rh8# {[%clk 0:00:48]} 1-0


[Site "https://www.chess.com"]

[Event "Titled Tuesday Blitz May 2 Late 2023"]
[White "Prieto Aranguren, Alain"]
[Black "Jaskolka, Tomasz"]
[WhiteFideId "2268906"]
[BlackFideId "1170791"]
[WhiteElo "2209"]
[BlackElo "2155"]
[Result "0-1"]
[Round "11"]
[TimeControl "180+2"]
[Date "2023.05.02"]
[WhiteClock "0:00:03"]
[BlackClock "0:00:26"]

1. d4 {[%clk 0:02:54]}  d5 {[%clk 0:02:58]} 2. c4 {[%clk 0:02:43]}  e5 {[%clk 0:02:57]} 3. dxe5 {[%clk 0:02:42]}  d4 {[%clk 0:02:57]} 4. Nf3 {[%clk 0:02:42]}  Nc6 {[%clk 0:02:57]} 5. g3 {[%clk 0:02:43]}  Nge7 {[%clk 0:02:56]} 6. Bg2 {[%clk 0:02:43]}  Ng6 {[%clk 0:02:57]} 7. e3 {[%clk 0:02:38]}  Bb4+ {[%clk 0:02:47]} 8. Kf1 {[%clk 0:02:27]}  d3 {[%clk 0:02:35]} 9. a3 {[%clk 0:02:19]}  Be7 {[%clk 0:02:32]} 10. Nc3 {[%clk 0:02:16]}  Ngxe5 {[%clk 0:02:32]} 11. Nxe5 {[%clk 0:02:16]}  Nxe5 {[%clk 0:02:33]} 12. h3 {[%clk 0:02:05]}  O-O {[%clk 0:02:33]} 13. b3 {[%clk 0:01:57]}  Bf6 {[%clk 0:02:15]} 14. Bb2 {[%clk 0:01:55]}  c6 {[%clk 0:02:15]} 15. Ne4 {[%clk 0:01:50]}  d2 {[%clk 0:01:45]} 16. Nxf6+ {[%clk 0:01:44]}  gxf6 {[%clk 0:01:44]} 17. Kg1 {[%clk 0:01:28]}  Bf5 {[%clk 0:01:32]} 18. Kh2 {[%clk 0:01:22]}  Kh8 {[%clk 0:01:31]} 19. f4 {[%clk 0:01:06]}  Nd3 {[%clk 0:01:29]} 20. Qxd2 {[%clk 0:00:44]}  Nxb2 {[%clk 0:01:16]} 21. Qxb2 {[%clk 0:00:44]}  Rg8 {[%clk 0:01:16]} 22. g4 {[%clk 0:00:42]}  Qe7 {[%clk 0:00:57]} 23. gxf5 {[%clk 0:00:20]}  Qxe3 {[%clk 0:00:56]} 24. Rhg1 {[%clk 0:00:18]}  Qxf4+ {[%clk 0:00:40]} 25. Kh1 {[%clk 0:00:18]}  Qh6 {[%clk 0:00:36]} 26. Raf1 {[%clk 0:00:17]}  Rg3 {[%clk 0:00:36]} 27. Rf2 {[%clk 0:00:09]}  Rag8 {[%clk 0:00:33]} 28. Qe2 {[%clk 0:00:04]}  Qg5 {[%clk 0:00:27]} 29. Kh2 {[%clk 0:00:03]}  Rxh3+ {[%clk 0:00:26]} 0-1


[Site "https://www.chess.com"]

[Event "Titled Tuesday Blitz May 2 Late 2023"]
[White "Papayan, Oleg"]
[Black "Ng, Gary"]
[WhiteFideId "4193911"]
[BlackFideId "2604914"]
[WhiteElo "2153"]
[BlackElo "2213"]
[Result "1-0"]
[Round "11"]
[TimeControl "180+2"]
[Date "2023.05.02"]
[WhiteClock "0:00:26"]
[BlackClock "0:01:44"]

1. e4 {[%clk 0:03:00]}  c6 {[%clk 0:02:47]} 2. Nf3 {[%clk 0:03:00]}  d5 {[%clk 0:02:48]} 3. Nc3 {[%clk 0:03:00]}  Bg4 {[%clk 0:02:47]} 4. Qe2 {[%clk 0:03:00]}  Bxf3 {[%clk 0:02:48]} 5. Qxf3 {[%clk 0:03:00]}  d4 {[%clk 0:02:46]} 6. Nb1 {[%clk 0:03:00]}  e5 {[%clk 0:02:46]} 7. Bc4 {[%clk 0:02:59]}  Qf6 {[%clk 0:02:46]} 8. Qg3 {[%clk 0:02:53]}  h5 {[%clk 0:02:44]} 9. h4 {[%clk 0:02:47]}  Ne7 {[%clk 0:02:36]} 10. d3 {[%clk 0:02:47]}  Ng6 {[%clk 0:02:36]} 11. Bg5 {[%clk 0:02:21]}  Qd6 {[%clk 0:02:36]} 12. O-O {[%clk 0:02:21]}  Be7 {[%clk 0:02:35]} 13. Nd2 {[%clk 0:01:59]}  Bxg5 {[%clk 0:02:33]} 14. Qxg5 {[%clk 0:01:59]}  Nd7 {[%clk 0:02:26]} 15. Nf3 {[%clk 0:01:37]}  Qf6 {[%clk 0:02:26]} 16. Qxf6 {[%clk 0:01:21]}  gxf6 {[%clk 0:02:26]} 17. g3 {[%clk 0:01:13]}  Ke7 {[%clk 0:02:13]} 18. Kh2 {[%clk 0:01:11]}  Ngf8 {[%clk 0:02:10]} 19. Ng1 {[%clk 0:01:04]}  Ne6 {[%clk 0:02:10]} 20. Ne2 {[%clk 0:01:05]}  Rhg8 {[%clk 0:02:08]} 21. b4 {[%clk 0:01:00]}  a5 {[%clk 0:02:06]} 22. a3 {[%clk 0:00:57]}  axb4 {[%clk 0:02:05]} 23. axb4 {[%clk 0:00:58]}  Nb6 {[%clk 0:02:05]} 24. Bb3 {[%clk 0:00:54]}  Rxa1 {[%clk 0:01:48]} 25. Rxa1 {[%clk 0:00:54]}  Ra8 {[%clk 0:01:49]} 26. Rf1 {[%clk 0:00:28]}  c5 {[%clk 0:01:44]} 27. Bxe6 {[%clk 0:00:26]}  Nd7 {[%clk 0:01:44]} 28. Bxd7 {[%clk 0:00:26]} 1-0


[Site "https://www.chess.com"]

[Event "Titled Tuesday Blitz May 2 Late 2023"]
[White "Rose, Felix"]
[Black "Colpe, Malte"]
[WhiteFideId "5105722"]
[BlackFideId "24623075"]
[WhiteElo "2039"]
[BlackElo "2289"]
[Result "1/2-1/2"]
[Round "11"]
[TimeControl "180+2"]
[Date "2023.05.02"]
[WhiteClock "0:00:07"]
[BlackClock "0:00:16"]

1. e4 {[%clk 0:03:00]}  c6 {[%clk 0:02:56]} 2. d4 {[%clk 0:02:58]}  d5 {[%clk 0:02:57]} 3. e5 {[%clk 0:02:59]}  Bf5 {[%clk 0:02:56]} 4. h4 {[%clk 0:02:59]}  h5 {[%clk 0:02:56]} 5. Bd3 {[%clk 0:03:00]}  Bxd3 {[%clk 0:02:55]} 6. Qxd3 {[%clk 0:03:01]}  Qa5+ {[%clk 0:02:55]} 7. Nd2 {[%clk 0:02:50]}  e6 {[%clk 0:02:54]} 8. Nf3 {[%clk 0:02:49]}  Qa6 {[%clk 0:02:54]} 9. c4 {[%clk 0:02:48]}  Nh6 {[%clk 0:02:50]} 10. O-O {[%clk 0:02:45]}  Nf5 {[%clk 0:02:48]} 11. Qc2 {[%clk 0:02:45]}  Be7 {[%clk 0:02:43]} 12. cxd5 {[%clk 0:02:41]}  cxd5 {[%clk 0:02:37]} 13. Nb3 {[%clk 0:02:09]}  Nc6 {[%clk 0:02:33]} 14. Bg5 {[%clk 0:02:05]}  Bxg5 {[%clk 0:02:24]} 15. hxg5 {[%clk 0:01:53]}  h4 {[%clk 0:02:24]} 16. g6 {[%clk 0:01:45]}  fxg6 {[%clk 0:02:09]} 17. Nc5 {[%clk 0:01:41]}  Qc4 {[%clk 0:02:08]} 18. Qxc4 {[%clk 0:01:35]}  dxc4 {[%clk 0:02:09]} 19. Nxe6 {[%clk 0:01:35]}  Ke7 {[%clk 0:01:52]} 20. d5 {[%clk 0:01:34]}  Nb4 {[%clk 0:01:52]} 21. Nf4 {[%clk 0:01:32]}  Rh6 {[%clk 0:01:44]} 22. d6+ {[%clk 0:01:27]}  Kd7 {[%clk 0:01:43]} 23. Rfd1 {[%clk 0:01:06]}  Nd3 {[%clk 0:01:13]} 24. Nxd3 {[%clk 0:00:58]}  cxd3 {[%clk 0:01:14]} 25. Rxd3 {[%clk 0:00:58]}  h3 {[%clk 0:01:15]} 26. gxh3 {[%clk 0:00:54]}  Rxh3 {[%clk 0:01:14]} 27. e6+ {[%clk 0:00:54]}  Kd8 {[%clk 0:01:11]} 28. e7+ {[%clk 0:00:52]}  Ke8 {[%clk 0:01:10]} 29. Re1 {[%clk 0:00:44]}  Nxd6 {[%clk 0:01:08]} 30. Kg2 {[%clk 0:00:18]}  Rxf3 {[%clk 0:00:56]} 31. Kxf3 {[%clk 0:00:18]}  Nf5 {[%clk 0:00:57]} 32. Rd5 {[%clk 0:00:14]}  Rc8 {[%clk 0:00:54]} 33. Kf4 {[%clk 0:00:14]}  Nxe7 {[%clk 0:00:52]} 34. Rde5 {[%clk 0:00:14]}  Rc7 {[%clk 0:00:52]} 35. Kg5 {[%clk 0:00:12]}  Kf7 {[%clk 0:00:51]} 36. R1e3 {[%clk 0:00:12]}  Nf5 {[%clk 0:00:48]} 37. Rc3 {[%clk 0:00:10]}  Rd7 {[%clk 0:00:47]} 38. Rec5 {[%clk 0:00:09]}  Ne7 {[%clk 0:00:45]} 39. Rc7 {[%clk 0:00:10]}  Rd5+ {[%clk 0:00:45]} 40. Kg4 {[%clk 0:00:10]}  Rd4+ {[%clk 0:00:33]} 41. Kg3 {[%clk 0:00:10]}  Kf6 {[%clk 0:00:27]} 42. Rxb7 {[%clk 0:00:07]}  Nf5+ {[%clk 0:00:27]} 43. Kf3 {[%clk 0:00:06]}  a5 {[%clk 0:00:24]} 44. Rc6+ {[%clk 0:00:06]}  Kg5 {[%clk 0:00:24]} 45. Rbb6 {[%clk 0:00:07]}  Rf4+ {[%clk 0:00:23]} 46. Ke2 {[%clk 0:00:07]}  Nd4+ {[%clk 0:00:23]} 47. Kf1 {[%clk 0:00:05]}  Nxc6 {[%clk 0:00:23]} 48. Rxc6 {[%clk 0:00:05]}  Rb4 {[%clk 0:00:22]} 49. b3 {[%clk 0:00:05]}  a4 {[%clk 0:00:21]} 50. Rc5+ {[%clk 0:00:06]}  Kf6 {[%clk 0:00:19]} 51. Rc6+ {[%clk 0:00:06]}  Kf5 {[%clk 0:00:17]} 52. Rc5+ {[%clk 0:00:06]}  Ke6 {[%clk 0:00:17]} 53. Rc6+ {[%clk 0:00:06]}  Kf7 {[%clk 0:00:17]} 54. Rc7+ {[%clk 0:00:06]}  Kf6 {[%clk 0:00:17]} 55. Rc6+ {[%clk 0:00:07]}  Kf7 {[%clk 0:00:15]} 56. Rc7+ {[%clk 0:00:07]}  Kf6 {[%clk 0:00:16]} 57. Rc6+ {[%clk 0:00:07]} 1/2-1/2


[Site "https://www.chess.com"]

[Event "Titled Tuesday Blitz May 2 Late 2023"]
[White "Cooklev, Steven"]
[Black "Buchenau, Frank"]
[WhiteFideId "2050552"]
[BlackFideId "4604350"]
[WhiteElo "2039"]
[BlackElo "2157"]
[Result "1-0"]
[Round "11"]
[TimeControl "180+2"]
[Date "2023.05.02"]
[WhiteClock "0:00:13"]
[BlackClock "0:00:26"]

1. e4 {[%clk 0:03:00]}  e6 {[%clk 0:02:59]} 2. d4 {[%clk 0:03:00]}  d5 {[%clk 0:02:58]} 3. Nd2 {[%clk 0:03:01]}  c5 {[%clk 0:02:57]} 4. Ngf3 {[%clk 0:03:01]}  cxd4 {[%clk 0:02:56]} 5. Nxd4 {[%clk 0:03:02]}  Nc6 {[%clk 0:02:56]} 6. Bb5 {[%clk 0:03:03]}  Bd7 {[%clk 0:02:55]} 7. Nxc6 {[%clk 0:03:01]}  bxc6 {[%clk 0:02:54]} 8. Bd3 {[%clk 0:03:01]}  Bd6 {[%clk 0:02:46]} 9. Qe2 {[%clk 0:02:58]}  Qc7 {[%clk 0:02:42]} 10. Nf3 {[%clk 0:02:42]}  e5 {[%clk 0:02:35]} 11. O-O {[%clk 0:02:23]}  Ne7 {[%clk 0:02:34]} 12. Bg5 {[%clk 0:02:01]}  f6 {[%clk 0:02:25]} 13. Bh4 {[%clk 0:02:01]}  O-O {[%clk 0:02:24]} 14. Bg3 {[%clk 0:01:59]}  Rab8 {[%clk 0:02:12]} 15. c4 {[%clk 0:01:51]}  d4 {[%clk 0:02:07]} 16. c5 {[%clk 0:01:31]}  Bxc5 {[%clk 0:02:03]} 17. Bc4+ {[%clk 0:01:21]}  Kh8 {[%clk 0:02:02]} 18. Nh4 {[%clk 0:01:22]}  g5 {[%clk 0:01:51]} 19. Nf5 {[%clk 0:00:45]}  Nxf5 {[%clk 0:01:49]} 20. exf5 {[%clk 0:00:46]}  Bxf5 {[%clk 0:01:48]} 21. Rfe1 {[%clk 0:00:41]}  Bd6 {[%clk 0:01:38]} 22. Rac1 {[%clk 0:00:36]}  c5 {[%clk 0:01:35]} 23. b3 {[%clk 0:00:35]}  Kg7 {[%clk 0:01:34]} 24. h4 {[%clk 0:00:34]}  h6 {[%clk 0:01:33]} 25. Red1 {[%clk 0:00:20]}  e4 {[%clk 0:01:30]} 26. Bd5 {[%clk 0:00:17]}  Bxg3 {[%clk 0:01:29]} 27. fxg3 {[%clk 0:00:18]}  e3 {[%clk 0:01:19]} 28. Rxd4 {[%clk 0:00:17]}  Qxg3 {[%clk 0:01:16]} 29. Rxc5 {[%clk 0:00:17]}  Rbc8 {[%clk 0:01:09]} 30. Rdc4 {[%clk 0:00:16]}  Rxc5 {[%clk 0:01:07]} 31. Rxc5 {[%clk 0:00:16]}  Bg4 {[%clk 0:01:07]} 32. Qd3 {[%clk 0:00:13]}  Qe1+ {[%clk 0:01:03]} 33. Kh2 {[%clk 0:00:12]}  Qxh4+ {[%clk 0:01:02]} 34. Kg1 {[%clk 0:00:13]}  e2 {[%clk 0:01:00]} 35. Rc7+ {[%clk 0:00:13]}  Bd7 {[%clk 0:00:25]} 36. Rxd7+ {[%clk 0:00:13]}  Rf7 {[%clk 0:00:26]} 37. Rxf7+ {[%clk 0:00:13]}  Kg8 {[%clk 0:00:26]} 38. Qh7# {[%clk 0:00:13]} 1-0


[Site "https://www.chess.com"]

[Event "Titled Tuesday Blitz May 2 Late 2023"]
[White "Ardila, Oscar Humberto"]
[Black "Van Baar, Esper"]
[WhiteFideId "4404742"]
[BlackFideId "1049321"]
[WhiteElo "1918"]
[BlackElo "2180"]
[Result "1-0"]
[Round "11"]
[TimeControl "180+2"]
[Date "2023.05.02"]
[WhiteClock "0:01:50"]
[BlackClock "0:00:06"]

1. d4 {[%clk 0:03:00]}  d5 {[%clk 0:02:37]} 2. c4 {[%clk 0:02:57]}  c6 {[%clk 0:02:37]} 3. cxd5 {[%clk 0:02:57]}  cxd5 {[%clk 0:02:37]} 4. Nc3 {[%clk 0:02:58]}  Nc6 {[%clk 0:02:38]} 5. Nf3 {[%clk 0:02:58]}  Bf5 {[%clk 0:02:37]} 6. Bf4 {[%clk 0:02:57]}  Nf6 {[%clk 0:02:37]} 7. e3 {[%clk 0:02:57]}  e6 {[%clk 0:02:37]} 8. Be2 {[%clk 0:02:57]}  Bb4 {[%clk 0:02:34]} 9. O-O {[%clk 0:02:57]}  O-O {[%clk 0:02:33]} 10. Rc1 {[%clk 0:02:56]}  Rc8 {[%clk 0:02:30]} 11. Na4 {[%clk 0:02:55]}  Nh5 {[%clk 0:01:59]} 12. Bg5 {[%clk 0:02:53]}  f6 {[%clk 0:01:57]} 13. Bh4 {[%clk 0:02:51]}  g5 {[%clk 0:01:33]} 14. Bg3 {[%clk 0:02:50]}  Nxg3 {[%clk 0:01:32]} 15. hxg3 {[%clk 0:02:50]}  Bd6 {[%clk 0:01:24]} 16. Nc5 {[%clk 0:02:47]}  Bxc5 {[%clk 0:01:14]} 17. dxc5 {[%clk 0:02:47]}  e5 {[%clk 0:01:13]} 18. Qb3 {[%clk 0:02:45]}  Be6 {[%clk 0:00:58]} 19. Qxb7 {[%clk 0:02:41]}  Rf7 {[%clk 0:00:58]} 20. Qa6 {[%clk 0:02:40]}  Nb4 {[%clk 0:00:54]} 21. Qxe6 {[%clk 0:02:39]}  Nxa2 {[%clk 0:00:49]} 22. Ra1 {[%clk 0:02:30]}  Nb4 {[%clk 0:00:47]} 23. Nxe5 {[%clk 0:02:21]}  fxe5 {[%clk 0:00:43]} 24. Bh5 {[%clk 0:02:21]}  Rc7 {[%clk 0:00:39]} 25. Bxf7+ {[%clk 0:02:12]}  Rxf7 {[%clk 0:00:36]} 26. Rxa7 {[%clk 0:02:08]}  Qf6 {[%clk 0:00:33]} 27. Qxf6 {[%clk 0:01:55]}  Rxf6 {[%clk 0:00:34]} 28. Rb7 {[%clk 0:01:55]}  Nd3 {[%clk 0:00:11]} 29. b4 {[%clk 0:01:55]}  d4 {[%clk 0:00:11]} 30. exd4 {[%clk 0:01:55]}  exd4 {[%clk 0:00:10]} 31. Rd1 {[%clk 0:01:54]}  Nxf2 {[%clk 0:00:09]} 32. Rxd4 {[%clk 0:01:53]}  Rf8 {[%clk 0:00:06]} 33. Rdd7 {[%clk 0:01:50]} 1-0


[Site "https://www.chess.com"]

[Event "Titled Tuesday Blitz May 2 Late 2023"]
[White "Vaglio Munoz, Jaime"]
[Black "Fajdetic, Hrvoje"]
[WhiteFideId "6500145"]
[BlackFideId "14501945"]
[WhiteElo "2199"]
[BlackElo "2185"]
[Result "0-1"]
[Round "11"]
[TimeControl "180+2"]
[Date "2023.05.02"]
[WhiteClock "0:00:33"]
[BlackClock "0:00:04"]

1. e4 {[%clk 0:03:00]}  c5 {[%clk 0:02:01]} 2. a3 {[%clk 0:02:59]}  d5 {[%clk 0:01:59]} 3. exd5 {[%clk 0:02:57]}  Qxd5 {[%clk 0:01:59]} 4. Nc3 {[%clk 0:02:57]}  Qd6 {[%clk 0:01:59]} 5. g3 {[%clk 0:02:57]}  e6 {[%clk 0:01:57]} 6. Bg2 {[%clk 0:02:57]}  Nf6 {[%clk 0:01:57]} 7. Nge2 {[%clk 0:02:57]}  a6 {[%clk 0:01:57]} 8. d4 {[%clk 0:02:57]}  Nc6 {[%clk 0:01:57]} 9. dxc5 {[%clk 0:02:51]}  Qxd1+ {[%clk 0:01:56]} 10. Nxd1 {[%clk 0:02:50]}  Bxc5 {[%clk 0:01:56]} 11. b4 {[%clk 0:02:49]}  Ba7 {[%clk 0:01:54]} 12. Bb2 {[%clk 0:02:47]}  O-O {[%clk 0:01:54]} 13. Bxc6 {[%clk 0:02:45]}  bxc6 {[%clk 0:01:53]} 14. Bd4 {[%clk 0:02:45]}  Bb8 {[%clk 0:01:45]} 15. f4 {[%clk 0:02:40]}  a5 {[%clk 0:01:42]} 16. c3 {[%clk 0:02:35]}  Nd5 {[%clk 0:01:41]} 17. Kf2 {[%clk 0:02:33]}  axb4 {[%clk 0:01:41]} 18. cxb4 {[%clk 0:02:30]}  f6 {[%clk 0:01:40]} 19. Bc5 {[%clk 0:02:25]}  Rf7 {[%clk 0:01:38]} 20. Nd4 {[%clk 0:02:25]}  e5 {[%clk 0:01:35]} 21. Nxc6 {[%clk 0:02:13]}  exf4 {[%clk 0:01:34]} 22. Nxb8 {[%clk 0:02:12]}  fxg3+ {[%clk 0:01:34]} 23. hxg3 {[%clk 0:02:13]}  Rxb8 {[%clk 0:01:34]} 24. Ne3 {[%clk 0:02:11]}  Nc3 {[%clk 0:01:32]} 25. a4 {[%clk 0:02:07]}  Ne4+ {[%clk 0:01:18]} 26. Ke2 {[%clk 0:02:03]}  Nxg3+ {[%clk 0:01:13]} 27. Kd3 {[%clk 0:02:00]}  Nxh1 {[%clk 0:01:03]} 28. Rxh1 {[%clk 0:02:01]}  Bd7 {[%clk 0:01:00]} 29. b5 {[%clk 0:01:59]}  Ra8 {[%clk 0:00:56]} 30. b6 {[%clk 0:01:50]}  Bxa4 {[%clk 0:00:54]} 31. Rb1 {[%clk 0:01:47]}  Bc6 {[%clk 0:00:51]} 32. Nc4 {[%clk 0:01:45]}  g5 {[%clk 0:00:24]} 33. Kc3 {[%clk 0:01:36]}  Rc8 {[%clk 0:00:22]} 34. Nd6 {[%clk 0:01:34]}  Rb8 {[%clk 0:00:11]} 35. Nxf7 {[%clk 0:01:23]}  Kxf7 {[%clk 0:00:11]} 36. Re1 {[%clk 0:01:23]}  Rb7 {[%clk 0:00:10]} 37. Bd4 {[%clk 0:01:19]}  Kg6 {[%clk 0:00:09]} 38. Kb4 {[%clk 0:01:19]}  h5 {[%clk 0:00:09]} 39. Kc5 {[%clk 0:01:19]}  Bf3 {[%clk 0:00:09]} 40. Re6 {[%clk 0:01:19]}  Rf7 {[%clk 0:00:08]} 41. Re3 {[%clk 0:01:16]}  g4 {[%clk 0:00:08]} 42. Bc3 {[%clk 0:01:01]}  Bb7 {[%clk 0:00:07]} 43. Be1 {[%clk 0:00:58]}  Kg5 {[%clk 0:00:07]} 44. Re6 {[%clk 0:00:54]}  f5 {[%clk 0:00:05]} 45. Bd2+ {[%clk 0:00:54]}  Kh4 {[%clk 0:00:05]} 46. Bf4 {[%clk 0:00:53]}  g3 {[%clk 0:00:05]} 47. Rg6 {[%clk 0:00:53]}  g2 {[%clk 0:00:03]} 48. Kd4 {[%clk 0:00:48]}  Bf3 {[%clk 0:00:03]} 49. Ke3 {[%clk 0:00:47]}  Bg4 {[%clk 0:00:03]} 50. Kf2 {[%clk 0:00:46]}  Kh3 {[%clk 0:00:03]} 51. Bc7 {[%clk 0:00:39]}  Re7 {[%clk 0:00:03]} 52. b7 {[%clk 0:00:39]}  Re2+ {[%clk 0:00:03]} 53. Kg1 {[%clk 0:00:33]}  Re1+ {[%clk 0:00:04]} 54. Kf2 {[%clk 0:00:33]}  g1=Q# {[%clk 0:00:04]} 0-1


[Site "https://www.chess.com"]